bitfinex-derivatives/quotes_ETHF0:USTF0_20250110
["timestamp","ask_amount","ask_price","bid_price","bid_amount"]
[1736527678002,1.68077,3260.0,3259.9,3.5146]
[1736527678202,1.472,3260.7,3259.9,3.2078]
[1736527678404,1.68077,3260.5,3260.4,0.30675]
[1736527678603,1.9419,3260.7,3260.3,3.2078]
[1736527678604,1.68077,3260.6,3260.5,0.30674]
[1736527679198,1.68077,3260.6,3260.5,41.10674]
[1736527679802,3.2078,3261.6,3260.5,40.8]
[1736527679998,0.9606,3261.4,3260.9,3.2078]
[1736527680205,0.30671,3260.9,3260.8,3.51451]
[1736527680408,1.68077,3260.9,3260.8,3.51451]
[1736527680807,0.9606,3261.4,3260.8,3.2078]
[1736527681106,1.26726,3261.4,3261.2,3.2078]
[1736527681300,0.9606,3261.4,3261.2,3.51447]
[1736527681506,1.68077,3261.3,3261.2,3.51447]
[1736527682005,1.68077,3261.3,3260.6,3.7072]
[1736527682210,1.68077,3260.9,3260.8,0.30671]
[1736527682511,1.68077,3260.7,3260.6,3.51453]
[1736527683899,0.30671,3260.9,3260.7,0.30672]
[1736527684110,1.72727,3261.4,3260.8,0.30671]
[1736527684305,1.68077,3260.7,3260.6,3.51453]
[1736527684508,0.30667,3261.3,3261.2,0.30668]
[1736527684805,1.68077,3260.7,3260.6,3.51453]
[1736527684999,1.98749,3260.7,3260.6,0.30673]
[1736527685206,1.68077,3260.7,3260.1,3.51457]
[1736527685403,1.68077,3260.2,3260.1,3.51458]
[1736527685603,1.68077,3260.2,3260.1,3.2078]
[1736527685797,0.3068,3259.9,3259.8,0.3068]
[1736527686002,0.3068,3259.9,3259.8,3.2078]
[1736527686202,1.98757,3259.9,3259.8,3.2078]
[1736527686401,1.98757,3259.9,3259.8,3.51461]
[1736527686604,1.68077,3259.9,3259.8,3.51461]
[1736527687008,1.68077,3259.9,3259.8,3.2078]
[1736527687215,4.6037,3260.6,3259.8,3.2078]
[1736527687405,1.68077,3260.1,3259.8,3.2078]
[1736527687711,1.68077,3260.0,3259.9,0.3068]
[1736527688113,1.68077,3260.0,3259.6,40.8]
[1736527688406,1.98759,3259.7,3259.6,41.10683]
[1736527689114,1.98759,3259.7,3259.6,40.8]
[1736527689503,1.68077,3259.7,3259.0,3.2078]
[1736527689810,1.68077,3259.1,3258.6,3.2078]
[1736527690106,3.65708819,3259.2,3258.0,3.2078]
[1736527690307,1.68077,3258.2,3258.1,0.30697]
[1736527690512,1.68077,3258.4,3258.0,3.2078]
[1736527690712,1.68077,3258.4,3258.3,0.30695]
[1736527692713,0.4678,3258.8,3258.7,0.30691]
[1736527692914,3.2078,3259.4,3258.6,3.2078]
[1736527692915,0.4877,3259.3,3258.6,3.2078]
[1736527693210,0.30687,3259.1,3258.6,3.2078]
[1736527693413,0.30688,3259.1,3258.9,0.30689]
[1736527693610,0.4877,3259.3,3258.8,40.8]
[1736527693822,1.68077,3258.9,3258.2,3.2078]
[1736527694016,1.68077,3258.3,3258.2,3.2078]
[1736527694209,1.98772,3258.3,3258.2,3.51476]
[1736527694414,1.68077,3258.3,3258.2,44.31476]
[1736527694910,1.68077,3258.3,3258.2,44.0078]
[1736527695212,1.68077,3258.3,3258.2,44.31476]
[1736527695716,1.98772,3258.3,3258.2,44.0078]
[1736527696615,1.68077,3258.3,3258.2,44.31476]
[1736527696918,1.98772,3258.3,3258.2,44.0078]
[1736527697214,1.68077,3258.3,3258.2,44.0078]
[1736527697415,1.98772,3258.3,3258.2,44.31476]
[1736527697604,1.98772,3258.3,3258.2,40.8]
[1736527697803,1.98772,3258.3,3258.0,0.30697]
[1736527697804,1.68077,3258.3,3257.8,3.2078]
[1736527698008,1.98775,3258.0,3257.8,3.2078]
[1736527698208,1.68077,3258.0,3257.9,0.30699]
[1736527698410,1.68077,3258.0,3257.9,41.10699]
[1736527698708,1.68077,3258.0,3257.9,40.8]
[1736527698909,1.68077,3258.0,3257.9,41.10699]
[1736527699318,1.98775,3258.0,3257.9,41.10699]
[1736527699515,1.68077,3258.0,3257.9,44.31479]
[1736527700216,1.98775,3258.0,3257.9,44.31479]
[1736527700419,1.68077,3258.0,3257.9,44.31479]
[1736527701218,0.5018,3258.5,3257.9,44.0078]
[1736527701411,0.5018,3258.5,3258.0,0.30698]
[1736527701412,1.68077,3258.1,3258.0,0.30698]
[1736527701618,1.68077,3258.2,3258.1,0.30697]
[1736527703613,1.68077,3258.2,3257.9,44.0078]
[1736527703910,0.4972,3258.8,3257.9,46.89769819]
[1736527704117,0.4972,3258.8,3258.5,3.2078]
[1736527704313,0.30692,3258.6,3258.5,3.51473]
[1736527704514,3.2078,3259.3,3258.5,44.0078]
[1736527704715,1.68077,3259.2,3259.1,3.2078]
[1736527704915,1.68077,3259.4,3259.1,3.2078]
[1736527705120,0.999,3259.5,3259.1,3.2078]
[1736527705318,0.999,3259.5,3259.0,0.30688]
[1736527705319,1.98763,3259.2,3259.0,0.30688]
[1736527705524,1.68077,3259.1,3259.0,0.30688]
[1736527707519,0.999,3259.5,3259.4,0.30685]
[1736527708124,0.30687,3259.2,3259.1,0.30686]
[1736527708324,0.30688,3259.1,3259.0,0.30688]
[1736527708625,1.98766,3258.9,3258.8,3.5147]
[1736527709220,1.68077,3258.9,3258.8,3.5147]
[1736527710523,0.999,3259.5,3259.4,0.30685]
[1736527710920,2.67977,3259.5,3259.4,0.30685]
[1736527711321,1.68077,3259.5,3259.4,0.30685]
[1736527711524,0.4953,3260.0,3259.2,3.2078]
[1736527711722,0.4953,3260.0,3259.9,0.3068]
[1736527711925,2.17607,3260.0,3259.9,41.1068]
[1736527712526,2.17607,3260.0,3259.4,3.2078]
[1736527712527,0.30684,3259.5,3259.4,3.2078]
[1736527712720,1.68077,3259.5,3259.4,3.2078]
[1736527712929,1.68077,3259.5,3259.4,3.51465]
[1736527713626,0.4953,3260.0,3259.9,0.3068]
[1736527713927,0.521,3260.3,3259.8,3.2078]
[1736527714127,0.521,3260.3,3260.2,0.30677]
[1736527714526,1.0183,3260.6,3260.5,0.30674]
[1736527714727,2.69907,3260.6,3260.5,0.30674]
[1736527714926,2.18287,3260.6,3260.5,0.30674]
[1736527715627,2.18287,3260.6,3260.4,3.2078]
[1736527715833,1.68077,3260.5,3260.4,0.30675]
[1736527716028,1.68077,3260.5,3260.3,0.30676]
[1736527716233,1.68077,3260.4,3260.3,0.30676]
[1736527716726,1.68077,3260.4,3260.2,0.30677]
[1736527716934,0.5021,3260.6,3260.2,0.30677]
[1736527717128,1.68077,3260.3,3260.2,0.30677]
[1736527717637,4.88857,3260.3,3259.8,0.3068]
[1736527717836,1.9876,3259.6,3259.5,3.51464]
[1736527718029,1.68077,3259.6,3259.5,0.30684]
[1736527718228,1.68077,3259.6,3259.5,3.51464]
[1736527718433,0.3068,3260.0,3259.8,0.3068]
[1736527718733,1.68077,3259.9,3259.8,0.30681]
[1736527719136,1.68077,3259.9,3259.5,6.09769819]
[1736527719137,0.9812,3260.2,3260.1,0.30678]
[1736527719330,0.9812,3260.2,3260.1,3.51458]
[1736527719531,2.66197,3260.2,3260.1,3.51458]
[1736527719727,2.66197,3260.2,3259.7,3.2078]
[1736527719940,1.68077,3259.8,3259.7,3.51462]
[1736527720139,0.9812,3260.2,3260.1,0.30678]
[1736527720736,1.68077,3260.2,3260.1,0.30678]
[1736527720937,0.5021,3260.6,3260.1,3.2078]
[1736527721136,2.18287,3260.6,3260.5,3.51454]
[1736527721339,1.68077,3260.6,3260.5,3.51454]
[1736527722937,0.4968,3261.4,3260.5,3.2078]
[1736527723131,0.4968,3261.4,3261.3,0.30667]
[1736527723640,2.17757,3261.4,3261.3,0.30667]
[1736527726039,2.17757,3261.4,3261.2,3.2078]
[1736527726246,1.98744,3261.3,3261.2,3.2078]
[1736527727441,1.68077,3261.3,3261.2,3.2078]
[1736527727642,0.4968,3261.4,3261.3,0.30667]
[1736527727847,1.68077,3261.4,3261.3,0.30667]
[1736527728049,0.5164,3261.9,3261.8,0.30662]
[1736527728441,2.19717,3261.9,3261.7,3.2078]
[1736527728638,1.68077,3261.8,3261.7,3.2078]
[1736527728947,1.68077,3261.8,3261.7,3.51443]
[1736527729249,1.98739,3261.8,3261.7,3.2078]
[1736527729947,1.98739,3261.8,3261.2,0.30667]
[1736527729948,0.30665,3261.5,3261.2,0.30667]
[1736527730144,3.40629819,3261.9,3261.2,0.30667]
[1736527730145,1.31096,3261.4,3261.2,0.30667]
[1736527730341,1.68077,3261.3,3261.0,0.3067]
[1736527730548,1.68077,3261.3,3260.9,3.2078]
[1736527730549,1.68077,3261.1,3260.9,3.2078]
[1736527730748,1.68077,3261.1,3261.0,0.3067]
[1736527732552,1.98746,3261.1,3260.9,3.5145]
[1736527732754,1.68077,3261.0,3260.9,3.5145]
[1736527734451,0.5164,3261.9,3261.8,0.30662]
[1736527734748,0.5164,3261.9,3261.8,3.51442]
[1736527734953,2.19717,3261.9,3261.8,3.51442]
[1736527735655,2.19717,3261.9,3261.8,3.2078]
[1736527735854,2.19717,3261.9,3261.8,3.51442]
[1736527736156,2.19717,3261.9,3261.8,3.2078]
[1736527736455,2.19717,3261.9,3261.4,3.2078]
[1736527736651,0.5164,3261.9,3261.4,3.2078]
[1736527736852,1.68077,3261.5,3261.0,3.2078]
[1736527737158,0.30663,3261.7,3261.5,0.30664]
[1736527737356,1.68077,3261.4,3261.3,0.30667]
[1736527737553,1.68077,3261.1,3261.0,3.2078]
[1736527737754,1.68077,3261.1,3261.0,3.5145]
[1736527741557,1.98746,3261.1,3261.0,3.2078]
[1736527741758,1.68077,3261.1,3261.0,3.5145]
[1736527741960,1.98746,3261.1,3261.0,3.5145]
[1736527742156,1.98746,3261.1,3261.0,3.2078]
[1736527743366,1.98746,3261.1,3260.6,40.8]
[1736527743367,0.30672,3260.8,3260.7,0.30672]
[1736527743863,1.68077,3260.8,3260.7,0.30672]
[1736527744762,1.68077,3260.8,3260.6,44.0078]
[1736527744959,0.30667,3261.3,3261.2,0.30667]
[1736527745159,1.68077,3261.3,3261.2,0.30667]
[1736527745767,1.68077,3261.3,3261.2,41.10667]
[1736527746458,1.68077,3261.3,3261.0,3.51449]
[1736527746459,0.30669,3261.1,3261.0,3.51449]
[1736527746657,1.98746,3261.1,3261.0,3.2078]
[1736527747459,1.98746,3261.1,3260.5,40.8]
[1736527747460,1.68077,3261.1,3260.5,40.8]
[1736527747758,0.30676,3260.3,3260.2,0.30676]
[1736527747954,0.76679,3260.9,3260.1,3.51457]
[1736527747955,1.68077,3260.2,3260.1,3.51457]
[1736527748156,1.68077,3260.2,3260.1,44.31457]
[1736527748657,0.5201,3260.8,3260.7,0.30672]
[1736527748859,0.4871,3261.0,3260.6,3.2078]
[1736527749061,1.68077,3260.8,3260.7,0.30672]
[1736527749666,0.30672,3260.7,3260.6,3.2078]
[1736527749961,0.30676,3260.3,3260.2,0.30677]
[1736527750153,1.68077,3260.2,3260.1,44.31458]
[1736527750556,0.4821,3260.6,3260.5,0.30674]
[1736527750767,0.4871,3261.0,3260.9,0.30671]
[1736527751071,0.4871,3261.0,3260.9,3.51451]
[1736527751273,2.16787,3261.0,3260.9,3.51451]
[1736527751457,0.3067,3260.9,3260.8,0.30671]
[1736527751770,1.68077,3260.6,3260.5,3.51454]
[1736527753065,1.68077,3260.6,3260.5,3.2078]
[1736527753370,1.68077,3260.6,3260.2,0.30676]
[1736527753669,1.68077,3260.2,3260.1,44.31458]
[1736527755768,1.68077,3260.2,3260.1,44.0078]
[1736527755769,1.98754,3260.2,3260.1,44.0078]
[1736527755978,1.98754,3260.2,3260.1,3.2078]
[1736527756176,1.68077,3260.2,3260.1,3.51458]
[1736527757067,1.98754,3260.2,3260.1,3.2078]
[1736527757272,1.68077,3260.2,3260.1,3.2078]
[1736527757467,1.68077,3260.2,3260.1,3.51458]
[1736527757663,1.98754,3260.2,3260.1,3.2078]
[1736527758063,2.48794,3260.2,3260.1,3.2078]
[1736527759578,2.48794,3260.2,3260.1,3.51458]
[1736527759775,2.48794,3260.2,3260.1,3.2078]
[1736527760076,0.76696,3260.1,3259.3,40.8]
[1736527760374,0.30685,3259.4,3259.3,0.30686]
[1736527760669,1.07381,3259.9,3259.2,3.51466]
[1736527760876,0.5179,3259.9,3259.2,3.2078]
[1736527761074,0.5179,3259.9,3259.8,0.30681]
[1736527761271,0.30684,3259.6,3259.4,0.30684]
[1736527761473,0.30683,3259.6,3259.4,0.30684]
[1736527761675,0.30685,3259.4,3259.3,40.8]
[1736527761877,0.30684,3259.5,3259.4,0.30684]
[1736527762075,0.30684,3259.5,3259.3,40.8]
[1736527762076,0.5179,3259.9,3259.3,40.8]
[1736527762279,0.30682,3259.7,3259.6,0.30683]
[1736527762471,0.5179,3259.9,3259.3,40.8]
[1736527762674,0.30686,3259.3,3259.2,3.2078]
[1736527762878,0.30687,3259.1,3259.0,0.30688]
[1736527763183,0.30687,3259.1,3259.0,44.31468]
[1736527763184,0.30688,3259.1,3259.0,44.31468]
[1736527763379,0.76709,3259.6,3259.5,0.30684]
[1736527763380,0.30683,3259.6,3259.5,0.30684]
[1736527763576,0.30685,3259.4,3259.3,0.30685]
[1736527764072,0.5062,3259.5,3259.0,44.0078]
[1736527764279,0.30687,3259.2,3259.1,0.30687]
[1736527764777,0.30686,3259.3,3259.2,0.30686]
[1736527764980,0.5062,3259.5,3259.0,44.0078]
[1736527764981,0.30687,3259.2,3259.1,0.30687]
[1736527765575,0.5062,3259.5,3259.0,46.39580763]
[1736527765777,0.81305,3259.5,3259.4,0.30685]
[1736527765980,0.5062,3259.5,3259.4,0.30685]
[1736527766376,0.81304,3259.5,3259.4,3.51465]
[1736527766777,0.477,3259.6,3259.5,0.30684]
[1736527767081,0.30684,3259.5,3259.4,3.2078]
[1736527767280,0.30687,3259.2,3259.1,0.30687]
[1736527767482,0.30687,3259.1,3259.0,41.10688]
[1736527767672,3.63208763,3259.6,3258.9,3.2078]
[1736527767873,0.30688,3259.0,3258.9,3.51469]
[1736527768071,0.30688,3259.1,3259.0,0.30688]
[1736527768273,0.30688,3259.1,3258.9,44.0078]
[1736527768274,1.24408,3259.6,3258.9,44.0078]
[1736527768474,0.30687,3259.2,3259.1,0.30687]
[1736527768680,0.30688,3259.1,3259.0,0.30688]
[1736527769082,0.30688,3259.0,3258.9,44.31469]
[1736527769879,0.4702,3259.3,3258.8,3.2078]
[1736527769880,0.497,3259.2,3258.8,3.2078]
[1736527770092,0.30691,3258.8,3258.7,3.5147]
[1736527770472,0.30691,3258.8,3258.6,0.30691]
[1736527770672,0.30691,3258.8,3258.7,0.30691]
[1736527771182,0.76719,3259.1,3258.5,40.8]
[1736527771384,0.30692,3258.6,3258.5,40.8]
[1736527772078,6.36311763,3258.7,3257.9,3.2078]
[1736527772279,0.30697,3258.2,3258.1,0.30696]
[1736527772476,1.0097,3258.5,3258.1,40.8]
[1736527772675,0.30696,3258.2,3258.1,41.10696]
[1736527772883,0.30695,3258.3,3258.2,0.30695]
[1736527773083,0.30696,3258.2,3258.1,41.10696]
[1736527773285,0.30696,3258.2,3258.1,40.8]
[1736527773581,1.0097,3258.5,3258.1,40.8]
[1736527773974,0.497,3258.5,3258.4,0.30694]
[1736527774178,3.2078,3258.7,3258.1,40.8]
[1736527774387,0.30693,3258.5,3258.4,0.30694]
[1736527774783,0.30692,3258.6,3258.3,0.30694]
[1736527774986,0.30693,3258.5,3258.4,0.30693]
[1736527775187,0.30693,3258.6,3258.5,0.30692]
[1736527775385,0.30695,3258.3,3258.2,0.30695]
[1736527775582,1.26178,3258.8,3258.3,0.30695]
[1736527775583,0.30695,3258.4,3258.3,0.30695]
[1736527775779,0.30695,3258.3,3258.2,0.30695]
[1736527775979,3.2078,3258.5,3258.1,40.8]
[1736527776185,3.2078,3258.5,3257.7,0.307]
[1736527776186,0.307,3257.8,3257.7,0.307]
[1736527776488,2.38800763,3258.3,3257.6,3.2078]
[1736527776691,0.9925,3258.2,3257.8,0.30699]
[1736527776985,6.36304763,3258.9,3258.0,3.2078]
[1736527777176,0.9925,3258.7,3258.4,3.2078]
[1736527777378,0.30693,3258.6,3258.5,0.30693]
[1736527777679,0.30693,3258.5,3258.4,3.2078]
[1736527777886,0.30693,3258.5,3258.4,3.51474]
[1736527778586,0.30693,3258.5,3258.4,3.2078]
[1736527778781,0.30693,3258.5,3258.4,3.51474]
[1736527778980,0.30693,3258.5,3258.4,3.2078]
[1736527780279,0.76737,3258.4,3257.6,3.2078]
[1736527780485,0.307,3257.8,3257.6,3.51481]
[1736527780688,0.30699,3257.9,3257.8,0.30699]
[1736527780885,0.30696,3258.2,3258.1,0.30697]
[1736527781085,0.76733,3258.5,3257.6,3.2078]
[1736527781387,0.30699,3257.9,3257.6,3.2078]
[1736527781590,0.30699,3258.0,3257.6,3.2078]
[1736527781891,0.30699,3258.0,3257.9,0.30699]
[1736527782583,0.30698,3258.0,3257.9,0.30698]
[1736527782891,0.307,3257.8,3257.6,3.51481]
[1736527783084,0.307,3257.8,3257.6,3.2078]
[1736527783482,0.30701,3257.7,3257.6,3.2078]
[1736527783883,0.943,3258.0,3257.6,44.0078]
[1736527784084,0.943,3258.0,3257.6,40.8]
[1736527784284,5.59580763,3257.7,3257.3,3.2078]
[1736527784492,6.36333763,3257.7,3256.5,3.2078]
[1736527784691,0.30707,3257.0,3256.9,0.30708]
[1736527784989,0.30707,3257.0,3256.9,40.8]
[1736527785382,0.30707,3257.0,3256.9,44.0078]
[1736527785582,0.30707,3257.0,3256.9,3.2078]
[1736527785788,1.22466,3257.6,3256.9,3.2078]
[1736527785988,0.30707,3257.0,3256.9,3.51488]
[1736527786384,0.4519,3257.2,3256.9,3.2078]
[1736527786584,0.4519,3257.2,3257.1,0.30706]
[1736527786790,0.30707,3257.1,3257.0,0.30707]
[1736527787194,0.30707,3257.0,3256.9,3.51488]
[1736527787386,0.4519,3257.2,3256.9,3.2078]
[1736527787890,0.4612,3257.3,3256.9,3.2078]
[1736527788086,0.76825,3257.3,3257.2,0.30705]
[1736527788389,0.4612,3257.3,3257.2,0.30705]
[1736527788587,0.4612,3257.3,3256.9,3.2078]
[1736527788588,0.4734,3257.5,3256.9,3.684]
[1736527788783,0.471,3257.8,3257.4,3.2078]
[1736527789090,0.30701,3257.7,3257.6,0.30702]
[1736527789290,0.471,3257.8,3256.9,0.4762]
[1736527789490,0.471,3257.8,3256.8,3.2078]
[1736527789491,0.30705,3257.3,3257.2,3.2078]
[1736527789787,0.30705,3257.3,3257.1,0.30705]
[1736527789993,0.30701,3257.7,3257.5,0.30702]
[1736527790185,0.30702,3257.6,3257.5,0.30702]
[1736527790491,0.30702,3257.6,3257.1,40.8]
[1736527790691,0.30701,3257.7,3257.6,0.30701]
[1736527790893,3.6788,3257.8,3257.1,40.8]
[1736527791391,0.30704,3257.3,3257.2,0.30705]
[1736527791888,0.76755,3257.6,3257.1,41.10706]
[1736527792288,0.76755,3257.6,3257.1,40.8]
[1736527792889,0.30705,3257.2,3257.1,41.10706]
[1736527793587,0.30705,3257.2,3257.1,40.8]
[1736527793987,0.30705,3257.2,3257.1,41.10706]
[1736527794293,0.30705,3257.2,3257.1,40.8]
[1736527794586,2.38800763,3257.7,3257.0,3.2078]
[1736527794786,2.38800763,3257.7,3255.5,1.84326]
[1736527794787,0.3071,3256.7,3256.6,3.5149]
[1736527794988,0.3071,3256.7,3256.6,3.2078]
[1736527795492,0.30712,3256.5,3256.4,0.30713]
[1736527795892,3.97552,3256.9,3256.3,40.8]
[1736527795893,0.30713,3256.4,3256.3,40.8]
[1736527796094,0.30713,3256.4,3256.3,41.10714]
[1736527796298,0.30712,3256.5,3256.4,0.30712]
[1736527796497,0.3071,3256.7,3256.6,0.30711]
[1736527796697,0.30712,3256.6,3256.5,0.30712]
[1736527796896,0.30712,3256.5,3256.4,0.30712]
[1736527797591,0.30713,3256.5,3256.4,0.30713]
[1736527797792,0.30713,3256.4,3256.3,0.30713]
[1736527798090,0.30714,3256.3,3256.2,3.51494]
[1736527798292,0.30714,3256.3,3256.2,3.2078]
[1736527798485,2.38800763,3256.5,3255.6,3.2078]
[1736527798696,0.30715,3256.2,3256.1,0.30715]
[1736527798886,0.4681,3256.4,3255.6,3.97581]
[1736527799087,0.30716,3256.1,3256.0,0.30716]
[1736527799293,0.30716,3256.1,3256.0,3.2078]
[1736527800102,0.4631,3256.2,3256.0,3.2078]
[1736527800404,0.30716,3256.1,3256.0,3.2078]
[1736527800597,0.30716,3256.1,3256.0,3.51497]
[1736527800798,0.77025,3256.2,3256.1,0.30716]
[1736527801099,0.30716,3256.1,3256.0,3.51496]
[1736527801290,0.30716,3256.1,3256.0,3.2078]
[1736527801495,0.30716,3256.1,3256.0,3.51497]
[1736527801695,0.30716,3256.1,3256.0,3.2078]
[1736527802204,0.4534,3256.3,3256.0,3.2078]
[1736527802502,0.30716,3256.1,3256.0,3.2078]
[1736527802695,2.38800763,3256.2,3255.5,0.4408]
[1736527803004,0.30718,3255.9,3255.7,0.30719]
[1736527803202,2.38800763,3256.2,3255.6,40.8]
[1736527803501,2.38800763,3255.9,3255.0,3.2078]
[1736527803798,3.2078,3256.2,3255.0,3.2078]
[1736527803799,0.30724,3255.3,3255.2,0.30724]
[1736527803998,0.30724,3255.3,3255.1,41.10725]
[1736527804205,1.3905,3255.5,3255.1,40.8]
[1736527804509,0.30724,3255.3,3255.1,41.10725]
[1736527804800,2.38800763,3255.3,3255.0,3.2078]
[1736527804990,2.38800763,3255.3,3254.7,0.30728]
[1736527805192,2.38800763,3255.3,3254.5,0.002]
[1736527805396,0.3073,3254.7,3254.5,0.30931]
[1736527805597,2.38800763,3255.0,3254.5,0.002]
[1736527805797,0.30729,3254.7,3254.5,0.3093]
[1736527806003,0.3073,3254.6,3254.5,0.002]
[1736527807303,0.30510919,3254.6,3254.5,0.002]
[1736527808493,2.38800763,3255.0,3254.7,0.30729]
[1736527808689,0.30724,3255.2,3254.7,3.2078]
[1736527809095,0.30725,3255.1,3254.9,0.30727]
[1736527809296,1.3905,3255.5,3254.7,3.2078]
[1736527809493,1.3905,3255.5,3255.1,3.2078]
[1736527809494,0.30725,3255.2,3255.1,3.2078]
[1736527809697,1.3905,3255.5,3255.1,3.2078]
[1736527810096,0.9495,3255.5,3255.2,40.8]
[1736527810292,3.2078,3256.0,3255.3,0.76809]
[1736527810496,1.467,3256.1,3255.5,3.2078]
[1736527810807,3.9756,3256.6,3255.9,3.51498]
[1736527810808,0.4499,3256.0,3255.9,3.51498]
[1736527811005,0.30739,3253.7,3253.4,0.30741]
[1736527811298,0.30734,3254.2,3253.8,0.30737]
[1736527811501,3.2078,3254.7,3253.8,3.51517]
[1736527811502,0.76825,3254.6,3253.8,3.51517]
[1736527811691,0.30735,3254.1,3253.8,0.30737]
[1736527811896,0.4626,3254.6,3253.4,5.59580763]
[1736527812100,0.4626,3254.6,3253.9,0.30736]
[1736527812101,0.30734,3254.2,3253.9,0.30736]
[1736527812401,0.30736,3254.0,3253.8,3.2078]
[1736527812596,0.4626,3254.6,3253.8,3.2078]
[1736527812804,0.30735,3254.1,3253.8,3.51517]
[1736527813102,0.30733,3254.3,3253.9,0.30736]
[1736527813302,0.30734,3254.2,3253.9,0.30736]
[1736527813499,0.30736,3254.0,3253.8,3.99197]
[1736527813700,0.30736,3254.0,3253.8,3.6846]
[1736527813999,0.30736,3253.9,3253.8,3.6846]
[1736527814397,0.30736,3254.0,3253.8,3.6846]
[1736527814599,0.30735,3254.1,3253.8,3.6846]
[1736527814801,0.30733,3254.3,3254.1,0.30735]
[1736527814999,0.9468,3254.5,3253.9,0.30736]
[1736527815195,2.90310462,3254.2,3253.3,3.2078]
[1736527815400,0.30741,3253.5,3253.2,41.10743]
[1736527815602,0.4755,3253.4,3253.3,0.30742]
[1736527815805,0.4755,3253.4,3253.3,3.51522]
[1736527816003,0.30738,3253.8,3253.5,0.30739]
[1736527816205,0.78288,3253.8,3253.3,3.2078]
[1736527816396,0.4755,3253.8,3253.5,0.30739]
[1736527816598,0.9103,3253.8,3253.3,3.2078]
[1736527816798,0.9103,3253.8,3253.7,0.30738]
[1736527817003,2.90310462,3254.2,3253.3,3.2078]
[1736527817194,2.90310462,3254.2,3253.2,40.8]
[1736527817195,0.30735,3254.1,3253.9,0.30736]
[1736527817400,0.30736,3254.0,3253.8,0.78087]
[1736527817603,0.30735,3254.1,3253.8,0.4735]
[1736527817809,0.4755,3254.2,3254.0,40.8]
[1736527817998,0.30735,3254.1,3254.0,40.8]
[1736527819500,0.4755,3254.2,3253.8,0.78087]
[1736527819801,0.30736,3254.0,3253.8,0.4735]
[1736527820003,0.4755,3254.2,3253.9,40.8]
[1736527820199,3.37860462,3254.2,3253.8,0.4735]
[1736527820399,3.37860462,3254.2,3253.7,3.2078]
[1736527820601,0.30736,3254.1,3253.8,0.30737]
[1736527820798,0.78284,3254.2,3253.9,41.10736]
[1736527821198,0.4755,3254.2,3253.9,40.8]
[1736527821403,3.2078,3254.7,3254.1,0.30734]
[1736527821604,0.30732,3254.4,3254.2,0.4422]
[1736527822403,0.30733,3254.3,3254.0,0.30735]
[1736527822602,3.6404,3254.7,3254.0,0.30736]
[1736527822603,0.30732,3254.4,3254.0,0.30736]
[1736527822811,0.30731,3254.5,3254.1,0.30734]
[1736527823108,0.30732,3254.4,3254.1,0.30734]
[1736527823308,0.30733,3254.3,3254.0,0.30735]
[1736527823504,0.30734,3254.2,3253.9,41.10736]
[1736527823701,0.4428,3254.2,3254.0,0.30735]
[1736527823904,0.4428,3254.2,3253.9,40.8]
[1736527824202,0.75014,3254.2,3253.9,0.30736]
[1736527824403,0.4428,3254.2,3254.0,0.30735]
[1736527824608,0.75014,3254.2,3253.9,0.30736]
[1736527824798,0.75014,3254.2,3253.8,0.4556]
[1736527824799,0.30735,3254.1,3253.8,0.76297]
[1736527825006,0.4743,3254.0,3253.8,0.76297]
[1736527825206,0.4743,3254.0,3253.9,0.30736]
[1736527825707,0.4428,3254.2,3254.1,0.30735]
[1736527826407,0.4743,3254.5,3254.1,3.2078]
[1736527826906,0.78161,3254.5,3254.1,3.2078]
[1736527827110,0.30732,3254.4,3254.2,0.30734]
[1736527827310,0.30732,3254.4,3254.3,40.8]
[1736527827517,0.78161,3254.5,3254.3,41.10732]
[1736527827804,0.30732,3254.4,3254.2,0.30733]
[1736527828010,0.4743,3254.5,3254.4,0.30732]
[1736527828313,0.4743,3254.5,3254.4,40.8]
[1736527828805,0.4522,3254.5,3254.4,40.8]
[1736527829003,3.2078,3255.6,3254.4,40.8]
[1736527829203,4.1154,3256.1,3255.2,3.2078]
[1736527829408,0.30722,3255.5,3255.3,0.30723]
[1736527829609,6.11090462,3255.4,3254.3,3.2078]
[1736527829913,6.11090462,3255.4,3251.8,1.29570211]
[1736527829914,3.2078,3254.6,3254.4,0.30731]
[1736527830108,3.2078,3254.6,3253.9,0.76842]
[1736527830109,0.30728,3254.8,3254.6,0.3073]
[1736527830300,0.3073,3254.6,3254.0,40.8]
[1736527830505,0.3073,3254.6,3254.4,0.30731]
[1736527830706,0.924,3254.7,3254.0,40.8]
[1736527830707,1.23129,3254.7,3254.5,0.3073]
[1736527830903,0.924,3254.7,3254.6,0.3073]
[1736527831105,0.4639,3254.7,3254.6,0.3073]
[1736527831511,3.51505,3255.2,3254.3,1.07566]
[1736527831808,3.51505,3255.2,3254.0,40.8]
[1736527831809,0.30731,3254.5,3254.0,40.8]
[1736527832005,0.30731,3254.5,3253.8,3.2078]
[1736527832006,0.30731,3254.5,3254.3,0.30732]
[1736527832202,0.9179,3254.4,3254.3,0.30732]
[1736527832510,0.9179,3254.4,3253.9,0.4799]
[1736527832717,0.9179,3254.4,3253.9,0.78726]
[1736527832905,0.30735,3254.1,3253.9,0.78726]
[1736527833112,0.30735,3254.1,3253.9,0.30736]